[Event "5th Sharjah Masters 2022"]
[Site "Sharjah"]
[Date "2022.05.22"]
[Round "2.7"]
[White "Abasov, Nijat"]
[Black "Puranik, Abhimanyu"]
[Result "1/2-1/2"]
[ECO "D97"]
[WhiteElo "2635"]
[BlackElo "2608"]
[Annotator "TA"]
[PlyCount "50"]
[EventDate "2022.05.21"]
[EventType "swiss"]
[EventCountry "UAE"]
[SourceTitle "playchess.com"]
[Source "ChessBase"]
[SourceQuality "1"]
[TimeControl "5400+30"]

{[%evp 14,50,45,0,0,8,5,0,44,54,37,53,32,36,56,52,56,12,32,25,63,58,71,54,47,-11,52,48,48,0,0,0,0,0,0,0,0,0,0]} 1. d4 {[%emt 0:00:16]} Nf6 {[%emt 0:00:22]} 2. c4 {[%emt 0:00:13]} g6 {[%emt 0:00:05]} 3. Nc3 {[%emt 0:00:07]} d5 {[%emt 0:00:06]} 4. Nf3 {[%emt 0:00:07]} Bg7 {[%emt 0:00:31]} 5. Qb3 {[%emt 0:00:07]} dxc4 {[%emt 0:00:41]} 6. Qxc4 {[%emt 0:00:10]} O-O {[%emt 0:00:08]} 7. e4 {[%emt 0:00:03]} Nc6 {[%emt 0:00:09]} 8. h3 {[%emt 0:00:35]} e5 {[%emt 0:02:38] D97: Grünfeld: Russian System: 7 e4, replies other than 7...Bg4.} 9. dxe5 {[%emt 0:00:20]} Nd7 {[%emt 0:00:29]} 10. e6 {[%emt 0:00:07]} Nde5 {[%emt 0:00:20]} 11. exf7+ {[%emt 0:00:45]} Rxf7 {[%emt 0:00:43]} 12. Nxe5 {[%emt 0:00:10]} Nxe5 {[%emt 0:00:04]} 13. Qb3 {[%emt 0:00:17] [#]} c6 $146 {[%emt 0:11:01]} ({Predecessor:} 13... Nd3+ 14. Bxd3 Qxd3 15. Be3 Qa6 16. Rd1 Be6 17. Qc2 Bxa2 18. b3 Qc6 19. Bd2 Qb6 20. Be3 Bxb3 21. Qd2 Qe6 22. Rc1 Rd7 23. Qe2 Rad8 24. Nd5 Qxe4 {0-1 (24) Macieja,B (2614)-Erdos,V (2624) Achaia 2012}) 14. Be3 {[%emt 0:01:35]} Qe7 {[%emt 0:00:33]} 15. Rd1 {[%emt 0:02:47]} Be6 {[%emt 0:03:52]} 16. Qc2 {[%emt 0:00:09]} Raf8 {[%emt 0:02:58]} 17. Be2 $1 {[%emt 0:03:09]} Nc4 {[%emt 0:05:24]} 18. Bxc4 {[%emt 0:17:26]} Bxc4 {[%emt 0:00:03]} 19. b3 {[%emt 0:00:55]} (19. h4 $14) 19... Rxf2 {[%emt 0:12:54]} 20. Bxf2 $14 {[%emt 0:02:47]} Rxf2 {[%emt 0:00:10]} 21. Kxf2 {[%emt 0:28:58]} (21. Rd2 $1 $14 Rxd2 22. Qxd2 Bxc3 23. Qxc3 Qxe4+ 24. Kf2) 21... Qc5+ $1 $11 {[%emt 0:01:02] The position is equal.} 22. Ke1 {[%emt 0:04:04]} Qe3+ {[%emt 0:01:05]} 23. Ne2 {[%emt 0:00:07]} Bc3+ $1 {[%emt 0:00:08] A strong pair of Bishops.} 24. Kf1 {[%emt 0:00:05]} Qf4+ $1 {[%emt 0:02:02]} 25. Kg1 {[%emt 0:00:06]} Qe3+ {[%emt 0:00:12] Weighted Error Value: White=0.16 (very precise) /Black=0.19 (very precise)} 1/2-1/2

[Event "5th Sharjah Masters 2022"]
[Site "Sharjah"]
[Date "2022.05.22"]
[Round "2.8"]
[White "Badelka, Olga"]
[Black "Idani, Pouya"]
[Result "0-1"]
[ECO "E40"]
[WhiteElo "2453"]
[BlackElo "2635"]
[Annotator "TA"]
[PlyCount "56"]
[EventDate "2022.05.21"]
[EventType "swiss"]
[EventCountry "UAE"]
[SourceTitle "playchess.com"]
[Source "ChessBase"]
[SourceQuality "1"]
[TimeControl "5400+30"]

{[%evp 10,56,6,0,14,16,23,9,19,23,18,16,41,41,59,54,69,54,97,94,102,84,117,12,0,36,52,0,0,-64,-58,-753,0,-756,-330,-727,-748,-755,-749,-743,-741,-750,-750,-743,-750,-829,-763,-877,-658]} 1. d4 {[%emt 0:00:04]} Nf6 {[%emt 0:00:08]} 2. c4 {[%emt 0:00:06]} e6 {[%emt 0:00:03]} 3. Nc3 {[%emt 0:00:08]} Bb4 {[%emt 0:00:05]} 4. e3 {[%emt 0:00:13]} d5 {[%emt 0:00:23]} 5. a3 {[%emt 0:00:18]} Bxc3+ {[%emt 0:00:06]} 6. bxc3 {[%emt 0:00:04]} c6 {[%emt 0:00:06] E40: Nimzo-Indian: Rubinstein (4 e3): Unusual Black 4th moves.} 7. a4 {[%emt 0:00:20] is cutting edge theory.} O-O {[%emt 0:00:07]} 8. Ba3 {[%emt 0:06:11]} Re8 {[%emt 0:00:31] The position is equal.} 9. Nf3 {[%emt 0:00:08]} Qc7 $5 {[%emt 0:00:07][%mdl 4] Exploring less charted territory.} 10. Bd3 {[%emt 0:02:40] [#]} Nbd7 $146 {[%emt 0:02:08]} ({Predecessor:} 10... b6 11. O-O Ba6 12. Ne5 c5 13. cxd5 exd5 14. Bxa6 Nxa6 15. Qd3 Nb8 16. Qb5 a6 {½-½ (57) Wagner,D (2578)-Kvetny,M (2415) Austria 2021}) 11. O-O {[%emt 0:16:56]} e5 {[%emt 0:01:06] aiming for ...e4.} 12. Nd2 {[%emt 0:03:27]} e4 {[%emt 0:02:18]} 13. Be2 {[%emt 0:00:06]} dxc4 {[%emt 0:10:01]} 14. Nxc4 {[%emt 0:01:33]} Re6 {[%emt 0:00:07] Inhibits Bd6.} 15. Qb3 {[%emt 0:07:58]} Nd5 {[%emt 0:02:28][%cal Ob7b5]} 16. Nd2 {[%emt 0:06:30]} (16. a5 $16) 16... Rh6 $11 {[%emt 0:03:40][%csl Gh6][%cal Rc7h2]} 17. g3 {[%emt 0:00:47]} N7f6 {[%emt 0:02:17] Strongly threatening ...Qd7.} 18. c4 {[%emt 0:02:27]} (18. Rfe1 $1 $14) 18... Qd7 $1 {[%emt 0:09:25][%cal Od7h3]} 19. f3 {[%emt 0:03:54]} (19. cxd5 {gets mated.} Qh3) ({Better is} 19. h4 $11 Nc7 20. Qb4) 19... Rxh2 $1 $15 {[%emt 0:00:13][%cal Od7h3] ( -> ...Qh3!)} (19... Qh3 $2 20. Rf2 exf3 21. Bxf3 $18 (21. Bf1 Qh5 $16)) 20. Kxh2 {[%emt 0:02:41][%mdl 8192]} (20. Rf2 $15 Rxf2 21. Kxf2 exf3 22. Bxf3) 20... Qh3+ $40 {[%emt 0:01:02][%mdl 128] Black has some attack.} 21. Kg1 {[%emt 0:00:03]} Qxg3+ {[%emt 0:00:05]} 22. Kh1 {[%emt 0:00:03][%cal Oa3d6] [#]} Nxe3 $1 {[%emt 0:03:02][%mdl 512] Black is clearly winning.} 23. Qxe3 {[%emt 0:16:19] [#]} Ng4 $1 {[%emt 0:00:16][%mdl 512]} 24. fxg4 {[%emt 0:04:45]} Qxe3 {[%emt 0:00:22]} 25. Nxe4 {[%emt 0:00:31]} Qxe4+ {[%emt 0:00:41]} 26. Bf3 {[%emt 0:00:03]} Qg6 {[%emt 0:00:14]} 27. Rg1 {[%emt 0:00:38]} Qd3 {[%emt 0:00:47]} 28. Kg2 {[%emt 0:00:37]} Qxc4 {[%emt 0:01:13] Weighted Error Value: White=0.58/Black=0.09 (flawless)} 0-1

[Event "5th Sharjah Masters 2022"]
[Site "Sharjah"]
[Date "2022.05.22"]
[Round "2.9"]
[White "Chigaev, Maksim"]
[Black "Aravindh, Chithambaram VR."]
[Result "1/2-1/2"]
[ECO "A13"]
[WhiteElo "2631"]
[BlackElo "2606"]
[Annotator "TA"]
[PlyCount "153"]
[EventDate "2022.05.21"]
[EventType "swiss"]
[EventCountry "UAE"]
[SourceTitle "playchess.com"]
[Source "ChessBase"]
[SourceQuality "1"]
[TimeControl "5400+30"]

{[%evp 12,153,39,8,28,35,48,14,72,73,78,55,75,29,41,39,44,28,35,35,38,35,41,22,33,20,29,20,45,38,22,12,5,0,42,39,58,71,60,50,78,35,43,44,33,37,42,0,14,12,14,11,14,18,13,14,52,52,52,52,50,32,77,14,77,77,77,77,77,52,77,52,77,52,77,52,77,47,77,47,77,59,59,34,59,0,59,59,59,59,59,59,59,59,59,59,59,59,59,59,59,0,59,0,59,29,29,0,5,5,30,0,0,0,0,0,0,0,0,0,0,0,0,0,0,0,0,0,0,0,0,0,0,0,0,0,0,0,0,0,0,0,0,0]} 1. c4 {[%emt 0:00:11]} e6 {[%emt 0:00:17]} 2. g3 {[%emt 0:00:34]} d5 {[%emt 0:00:44]} 3. Bg2 {[%emt 0:00:18]} g6 {[%emt 0:04:53]} 4. Nf3 {[%emt 0:01:40]} Bg7 {[%emt 0:00:08]} 5. O-O {[%emt 0:00:32]} Ne7 {[%emt 0:00:36]} 6. d4 {[%emt 0:01:21]} O-O {[%emt 0:01:44]} 7. Qc2 {[%emt 0:04:18]} Nbc6 {[%emt 0:16:26] A13: English Opening: 1...e6.} 8. Rd1 {[%emt 0:00:45]} a5 {[%emt 0:02:24]} 9. b3 {[%emt 0:04:30] [#]} dxc4 $146 {[%emt 0:29:31]} (9... Nxd4 $11 10. Nxd4 c5) ({Predecessor:} 9... Nxd4 10. Nxd4 c5 11. Bb2 cxd4 12. Bxd4 e5 13. Bc5 d4 14. Nc3 Qc7 15. Na4 Ra6 {0-1 (41) Horvath,C (2520)-Sandipan,C (2568) Leiden 2016}) 10. bxc4 $16 {[%emt 0:02:07]} e5 {[%emt 0:00:40]} (10... Bxd4 11. Nc3 $16) (10... Nxd4 $2 11. Nxd4 Bxd4 12. Ba3 $18) 11. dxe5 {[%emt 0:06:24]} Bf5 {[%emt 0:06:44]} 12. Qa4 {[%emt 0:00:51]} (12. Rxd8 $16 Bxc2 13. Rxa8 Rxa8 14. Bf4) 12... Qe8 $11 {[%emt 0:05:14]} 13. Bb2 {[%emt 0:02:47]} Nxe5 {[%emt 0:07:07]} 14. Qxe8 {[%emt 0:00:38]} Nxf3+ {[%emt 0:00:07]} 15. Bxf3 {[%emt 0:00:09]} Raxe8 {[%emt 0:00:06]} 16. Bxg7 {[%emt 0:01:17]} Kxg7 {[%emt 0:00:06]} 17. Bxb7 {[%emt 0:02:53][%cal Bf3b7,Bb7a6,Ba6c4][%mdl 32]} c6 {[%emt 0:08:11]} 18. c5 $1 {[%emt 0:00:26]} Rb8 {[%emt 0:04:30]} 19. Ba6 {[%emt 0:00:23]} Nd5 {[%emt 0:06:09] [#] And now ...Nb4 would win.} 20. Bc4 {[%emt 0:08:28]} Be6 {[%emt 0:01:14]} 21. Rd2 {[%emt 0:11:25][%cal Bd1d2,Bd2c2,Bc2c1][%mdl 32]} Rb4 {[%emt 0:01:31]} 22. Bb3 {[%emt 0:05:32]} Rb5 {[%emt 0:02:21]} 23. Rc2 {[%emt 0:02:27]} Nb4 {[%emt 0:00:04]} 24. Rc1 {[%emt 0:00:06]} Bxb3 {[%emt 0:00:56]} 25. axb3 {[%emt 0:00:06]} Na6 {[%emt 0:00:04][%csl LRb3,LRc5]} 26. b4 {[%emt 0:00:26]} Nxb4 {[%emt 0:01:05]} 27. Na3 {[%emt 0:00:06]} Rb7 {[%emt 0:00:06]} 28. Nc4 {[%emt 0:00:07]} Ra8 {[%emt 0:00:16]} 29. Nxa5 {[%emt 0:20:42]} Rb5 {[%emt 0:00:27]} 30. Nb3 {[%emt 0:00:58]} Rxa1 {[%emt 0:00:24]} 31. Rxa1 {[%emt 0:00:21][%mdl 4096] Endgame KRN-KRN} Nd5 {[%emt 0:00:31]} 32. Nd4 {[%emt 0:01:43][%csl LRb5,LRc6]} Rxc5 {[%emt 0:00:05]} 33. Ra7 {[%emt 0:00:35] aiming for Ne6+.} Rc4 {[%emt 0:01:43]} 34. Ne6+ {[%emt 0:01:16]} Kf6 {[%emt 0:00:10]} 35. Nd8 {[%emt 0:00:08]} Ne7 {[%emt 0:00:16]} 36. Rc7 {[%emt 0:02:05]} h5 {[%emt 0:00:34] [#]} 37. h3 {[%emt 0:00:43]} (37. h4 $1 $16) 37... Rd4 {[%emt 0:00:53]} (37... g5 $11 {keeps the balance.}) 38. Nxc6 $16 {[%emt 0:00:06]} Nxc6 {[%emt 0:00:09]} 39. Rxc6+ {[%emt 0:00:01] KR-KR} Kg7 {[%emt 0:00:11]} 40. Kg2 {[%emt 0:00:09]} Ra4 {[%emt 0:00:05]} 41. Rd6 {[%emt 0:00:20]} Kf8 {[%emt 0:00:18]} 42. Kf3 {[%emt 0:01:25]} Ke7 {[%emt 0:00:12]} 43. Rb6 {[%emt 0:00:06]} Ra2 {[%emt 0:00:17]} 44. e4 {[%emt 0:00:19][%cal Be2e4,Be4e5][%mdl 32]} Rc2 {[%emt 0:00:25]} 45. Ke3 {[%emt 0:00:22]} Ra2 {[%emt 0:00:54]} 46. e5 {[%emt 0:02:05]} Ra4 {[%emt 0:01:11]} 47. Rd6 {[%emt 0:00:21]} Rb4 {[%emt 0:00:06]} 48. f3 {[%emt 0:04:43]} ({Better is} 48. h4 $14) 48... Ra4 {[%emt 0:00:29]} ({Black should play} 48... h4 $11) 49. h4 $14 {[%emt 0:01:19]} Kf8 {[%emt 0:00:57]} 50. Rd4 {[%emt 0:00:47]} Ra3+ {[%emt 0:00:10]} 51. Kf4 {[%emt 0:00:05]} Kg7 {[%emt 0:00:13]} 52. Rb4 {[%emt 0:05:34]} Rc3 {[%emt 0:00:10]} 53. Rb7 {[%emt 0:00:53]} Rc4+ {[%emt 0:00:07]} 54. Ke3 $1 {[%emt 0:00:08]} Kf8 {[%emt 0:00:54]} 55. Rd7 {[%emt 0:00:32]} Ra4 {[%emt 0:00:12]} 56. Rd4 {[%emt 0:00:18]} Ra3+ {[%emt 0:00:17]} 57. Kf4 {[%emt 0:02:18]} Kg7 $1 {[%emt 0:00:19]} 58. g4 {[%emt 0:01:31]} hxg4 {[%emt 0:00:06]} 59. fxg4 {[%emt 0:00:31]} Ra6 {[%emt 0:02:34]} 60. Re4 {[%emt 0:02:39]} Ra1 {[%emt 0:00:41]} 61. h5 {[%emt 0:00:34]} gxh5 {[%emt 0:00:34] The position is equal.} 62. gxh5 {[%emt 0:00:07]} Rf1+ {[%emt 0:00:05]} 63. Kg3 {[%emt 0:01:02]} Kh6 {[%emt 0:00:42]} 64. Rf4 {[%emt 0:00:05]} Re1 {[%emt 0:01:01]} 65. Rf5 {[%emt 0:00:06]} Re4 {[%emt 0:00:40]} 66. Kf3 {[%emt 0:00:49]} Re1 {[%emt 0:00:03]} 67. Kf4 {[%emt 0:01:53]} Re2 {[%emt 0:00:09]} (67... Rf1+ 68. Ke4 Re1+ 69. Kd5 $14) 68. Kg4 {[%emt 0:00:47]} Re4+ {[%emt 0:00:20]} 69. Kg3 {[%emt 0:00:39]} Re2 {[%emt 0:00:18]} 70. Kf4 {[%emt 0:00:35]} Re1 {[%emt 0:00:20]} (70... Rf2+ 71. Kg4 Re2 72. Rf6+ (72. Rxf7 Rxe5 73. Rf6+ Kh7 $11) 72... Kg7 73. h6+ Kg8 74. Rf5) 71. Kf3 {[%emt 0:00:05]} Kg7 {[%emt 0:00:56]} (71... Rf1+ 72. Ke4 Re1+ 73. Kd5) 72. Kg4 {[%emt 0:00:23]} Rg1+ {[%emt 0:00:33]} 73. Kf4 {[%emt 0:00:19] White threatens Rg5+ and mate.} Re1 {[%emt 0:00:07]} 74. Kg4 {[%emt 0:02:31]} Rg1+ {[%emt 0:00:12]} 75. Kf3 {[%emt 0:00:14]} Re1 {[%emt 0:00:09]} 76. Kf4 {[%emt 0:00:11]} Kh6 {[%emt 0:00:15]} 77. Kg4 {[%emt 0:00:09] Weighted Error Value: White=0.16 (very precise) /Black=0.14 (very precise)} 1/2-1/2

[Event "5th Sharjah Masters 2022"]
[Site "Sharjah"]
[Date "2022.05.22"]
[Round "2.10"]
[White "Kamalidenova, Meruert"]
[Black "Yilmaz, Mustafa"]
[Result "1/2-1/2"]
[ECO "B51"]
[WhiteElo "2408"]
[BlackElo "2631"]
[Annotator "TA"]
[PlyCount "118"]
[EventDate "2022.05.21"]
[EventType "swiss"]
[EventCountry "UAE"]
[SourceTitle "playchess.com"]
[Source "ChessBase"]
[SourceQuality "1"]
[TimeControl "5400+30"]

{[%evp 9,118,10,12,0,15,17,13,13,16,13,13,8,25,26,24,9,34,34,29,28,29,0,9,0,7,0,21,0,0,0,60,0,0,0,0,0,16,14,58,58,36,0,0,0,0,0,0,-13,0,0,0,0,0,0,12,18,14,0,0,0,0,0,0,-16,0,0,0,0,0,0,0,0,0,0,0,0,0,0,0,0,0,0,0,0,0,0,0,0,0,0,0,0,0,0,0,0,0,0,0,0,0,0,0,0,0,0,0,0,0,0,0]} 1. e4 {[%emt 0:00:10]} c5 {[%emt 0:00:05]} 2. Nf3 {[%emt 0:00:06]} d6 {[%emt 0:00:04]} 3. Bb5+ {[%emt 0:00:06]} Nd7 {[%emt 0:00:49]} 4. Ba4 {[%emt 0:00:14]} Ngf6 {[%emt 0:02:26]} 5. O-O {[%emt 0:00:18]} e6 {[%emt 0:02:43]} 6. c4 {[%emt 0:00:46] B51: Sicilian: Moscow Variation (3 Bb5+) without 3...Bd7.} Be7 {[%emt 0:08:40]} 7. Nc3 {[%emt 0:01:49]} O-O {[%emt 0:00:45]} 8. d4 {[%emt 0:01:05]} cxd4 {[%emt 0:01:32]} 9. Nxd4 {[%emt 0:00:08]} a6 {[%emt 0:02:42]} 10. Kh1 {[%emt 0:01:39]} Qc7 {[%emt 0:07:45]} 11. Qe2 {[%emt 0:00:51]} Ne5 {[%emt 0:01:54]} 12. Bb3 {[%emt 0:00:40]} Bd7 {[%emt 0:01:20]} 13. f4 {[%emt 0:01:21]} Nc6 {[%emt 0:01:36] [#]} 14. Be3 $146 {[%emt 0:02:50]} ({Predecessor:} 14. Nf3 Rfc8 15. e5 Ne8 16. Bc2 g6 17. Bd2 Nb4 18. Bb3 a5 19. Nb5 Qd8 20. Bc3 {½-½ (46) Bacrot,E (2642)-Shankland,S (2708) Belgrade 2022}) 14... Rac8 {[%emt 0:09:53]} 15. Nxc6 {[%emt 0:06:18]} Bxc6 {[%emt 0:03:03]} 16. Bd4 {[%emt 0:01:59]} Nd7 {[%emt 0:02:56]} 17. Rac1 {[%emt 0:07:20]} Qa5 {[%emt 0:05:43]} 18. Bc2 {[%emt 0:14:54]} b5 {[%emt 0:19:49]} 19. Nd5 {[%emt 0:08:59]} Rfe8 {[%emt 0:00:36]} (19... exd5 $11 20. exd5 Bxd5 21. Qxe7 (21. cxd5 Bf6 $15) 21... Rxc4 22. Bxh7+ Kxh7 23. Qh4+ Kg8 24. Bxg7 Kxg7 25. Qg5+ Kh8 26. Rxc4 Bxc4 27. Qh6+ Kg8 28. Qg5+ Kh7 29. Qh4+ Kg8 30. Qg5+ Kh8 31. Qh6+ Kg8 32. Qg5+) 20. cxb5 {[%emt 0:08:16]} (20. Bc3 $14 Qd8 21. Nb4 (21. Nxe7+ Qxe7 22. e5 dxe5 $11) (21. Qg4 Bf6 $11)) 20... Bxb5 $11 {[%emt 0:03:55]} 21. Nxe7+ {[%emt 0:00:20]} ({Reject} 21. Qg4 Bf8 22. Bc3 Qd8 $17) 21... Rxe7 {[%emt 0:00:01]} 22. Bd3 {[%emt 0:03:39]} (22. Qg4 e5 23. fxe5 dxe5 $17) 22... Rce8 {[%emt 0:01:53]} 23. Bc3 {[%emt 0:02:37] This bishop pair is nice.} ({Much worse is} 23. Qg4 e5 24. Bxb5 axb5 25. fxe5 dxe5 $11) 23... Qxa2 {[%emt 0:11:09]} 24. Bxb5 {[%emt 0:02:46]} axb5 {[%emt 0:00:01]} 25. Qxb5 {[%emt 0:00:09] [#] And now Ra1 would win.} Qa8 {[%emt 0:01:55] The position is equal.} 26. Rfe1 {[%emt 0:06:53]} e5 {[%emt 0:02:17]} 27. fxe5 {[%emt 0:03:18]} Nxe5 {[%emt 0:00:23][%cal Bd7e5,Be5g4,Bg4f2][%mdl 32]} 28. Ra1 {[%emt 0:02:46]} Qd8 {[%emt 0:01:32]} 29. Ra6 {[%emt 0:02:44]} Re6 {[%emt 0:00:24]} 30. h3 {[%emt 0:02:07]} h6 {[%emt 0:03:04]} 31. Rd1 {[%emt 0:01:44][%cal Od1d6]} Qh4 {[%emt 0:03:21][%cal Oe5f3]} 32. Raxd6 {[%emt 0:04:56]} Ng4 $1 {[%emt 0:00:29]} 33. Rxe6 {[%emt 0:03:25]} Nf2+ {[%emt 0:00:53]} 34. Kh2 {[%emt 0:01:29]} Rxe6 {[%emt 0:00:11]} 35. Qb8+ {[%emt 0:06:18]} Kh7 {[%emt 0:00:02]} 36. Be1 {[%emt 0:01:37]} ({Wrong is} 36. Rd7 $2 Ng4+ 37. Kh1 Rxe4 $19) 36... Rxe4 {[%emt 0:01:55]} 37. Bxf2 {[%emt 0:01:05]} Qxf2 {[%emt 0:00:02][%mdl 4096] Endgame KQR-KQR} 38. b4 {[%emt 0:00:57]} Re2 {[%emt 0:01:00][%csl Ge2][%cal Rf2g2,Be4e2,Be2b2,Bb2b3][%mdl 32] [#]} 39. Qg3 {[%emt 0:00:23] Active counter play!} Qf5 {[%emt 0:00:36]} 40. Qd3 {[%emt 0:00:36]} Qxd3 {[%emt 0:00:15]} 41. Rxd3 {[%emt 0:00:03] KR-KR} Rb2 {[%emt 0:00:05]} 42. Rd4 {[%emt 0:00:05]} Rb3 {[%emt 0:00:21]} 43. Kg1 {[%emt 0:00:29]} Rb2 {[%emt 0:00:58]} 44. Kh2 {[%emt 0:00:47]} f5 {[%emt 0:00:27]} 45. Kg3 {[%emt 0:00:13]} g5 {[%emt 0:00:08]} 46. Kf3 {[%emt 0:00:19]} Rb3+ {[%emt 0:00:16]} 47. Kf2 {[%emt 0:00:06]} f4 {[%emt 0:01:15]} 48. Rd7+ {[%emt 0:00:40]} Kg6 {[%emt 0:00:02]} 49. Rb7 {[%emt 0:00:08]} Rb2+ {[%emt 0:00:58]} 50. Kf3 {[%emt 0:00:39]} Rb3+ {[%emt 0:00:04]} 51. Kf2 {[%emt 0:00:03]} h5 {[%emt 0:00:18]} 52. Rb6+ {[%emt 0:01:21]} Kf5 {[%emt 0:00:11]} 53. Rb5+ {[%emt 0:00:04]} Kf6 {[%emt 0:00:14]} 54. Rb6+ {[%emt 0:00:03]} Kf7 {[%emt 0:00:49]} 55. Rb7+ {[%emt 0:00:13]} Ke6 {[%emt 0:00:08]} 56. Rb6+ {[%emt 0:00:07]} Kf5 {[%emt 0:01:35]} 57. Rb5+ {[%emt 0:00:03]} Kf6 {[%emt 0:00:23]} 58. Rb6+ {[%emt 0:00:05]} Kg7 {[%emt 0:00:41]} 59. Rb7+ {[%emt 0:00:04]} Kf6 {[%emt 0:00:32] Weighted Error Value: White=0.04 (flawless) /Black=0.06 (flawless)} 1/2-1/2

[Event "5th Sharjah Masters 2022"]
[Site "Sharjah"]
[Date "2022.05.22"]
[Round "2.11"]
[White "Yakubboev, Nodirbek"]
[Black "Iskandarov, Misratdin"]
[Result "0-1"]
[ECO "A28"]
[WhiteElo "2630"]
[BlackElo "2601"]
[Annotator "TA"]
[PlyCount "126"]
[EventDate "2022.05.21"]
[EventType "swiss"]
[EventCountry "UAE"]
[SourceTitle "playchess.com"]
[Source "ChessBase"]
[SourceQuality "1"]
[TimeControl "5400+30"]

{[%evp 9,126,0,0,2,12,11,5,7,19,13,14,14,12,12,14,14,11,13,22,17,21,10,44,44,43,42,40,42,45,46,44,42,47,42,41,36,23,38,40,32,66,52,67,67,73,68,72,71,100,97,135,135,152,152,152,152,152,152,152,136,137,99,91,87,102,82,120,120,122,133,131,143,154,148,388,366,272,4,1,1,1,0,0,-304,-289,-262,-69,-73,-74,-271,-271,-230,-8,-8,-8,-14,-14,-64,-64,-189,-189,-189,-189,-2337,-2337,-2308,-2246,-2218,-2175,-2149,-2022,-4776,-4776,-4692,-4692,-4498,-931,-2396,-504]} 1. c4 {[%emt 0:00:02]} e5 {[%emt 0:01:53]} 2. Nc3 {[%emt 0:00:08]} Nc6 {[%emt 0:00:21]} 3. Nf3 {[%emt 0:00:07]} Nf6 {[%emt 0:00:30]} 4. e4 {[%emt 0:00:04]} Bb4 {[%emt 0:00:35]} 5. d3 {[%emt 0:00:07]} d6 {[%emt 0:00:16]} 6. a3 {[%emt 0:00:06] A28: English Opening: Four Knights Variation.} Bc5 {[%emt 0:01:01]} 7. b4 {[%emt 0:00:07]} Bb6 {[%emt 0:02:54]} 8. Be3 {[%emt 0:00:49] The position is equal.} Bg4 {[%emt 0:04:28]} 9. Be2 {[%emt 0:00:16]} Bxf3 {[%emt 0:01:31]} 10. Bxf3 {[%emt 0:00:01]} O-O {[%emt 0:03:17]} 11. O-O {[%emt 0:00:04]} Nd4 {[%emt 0:12:57]} 12. Na4 {[%emt 0:09:42]} Nxf3+ {[%emt 0:09:10]} 13. Qxf3 {[%emt 0:00:04] [#]} Qd7 $5 $146 {[%emt 0:02:42][%mdl 8] An interesting novelty.} ({Predecessor:} 13... Bxe3 14. Qxe3 c6 15. Rfd1 Re8 16. d4 exd4 17. Rxd4 Qe7 18. Rad1 Rad8 19. Nc3 Qe5 {1-0 (33) Abdusattorov,N (2651)-Sarana,A (2685) Chess.com INT 2022}) 14. Nc3 {[%emt 0:03:25]} c6 {[%emt 0:01:02]} 15. h3 {[%emt 0:06:27]} Ne8 {[%emt 0:04:31]} 16. Bxb6 {[%emt 0:05:13]} axb6 {[%emt 0:00:21]} 17. Qe3 {[%emt 0:00:04]} Qd8 {[%emt 0:12:37]} 18. Rfd1 {[%emt 0:08:27]} Nf6 {[%emt 0:03:49]} 19. d4 {[%emt 0:11:57]} Qc7 {[%emt 0:04:21]} 20. Rd3 {[%emt 0:10:57]} Rfd8 {[%emt 0:04:36]} 21. Rad1 {[%emt 0:05:57]} Nd7 {[%emt 0:07:25]} 22. c5 {[%emt 0:20:43]} Nf8 {[%emt 0:05:30]} 23. cxd6 {[%emt 0:07:43]} Rxd6 {[%emt 0:00:28]} 24. d5 {[%emt 0:03:28]} Rad8 {[%emt 0:05:50]} 25. a4 {[%emt 0:00:43]} h6 {[%emt 0:05:00]} 26. b5 {[%emt 0:02:59]} c5 {[%emt 0:03:56]} 27. R3d2 {[%emt 0:01:16][%cal Bd3d2,Bd2a2,Ba2a5][%mdl 32]} Ng6 {[%emt 0:01:08]} 28. g3 {[%emt 0:00:58]} Qd7 {[%emt 0:01:49]} 29. Kh2 {[%emt 0:00:07]} Qe7 {[%emt 0:00:23]} 30. Nb1 {[%emt 0:00:37]} Ra8 {[%emt 0:00:21]} 31. Ra2 {[%emt 0:00:45]} Rdd8 {[%emt 0:00:41]} 32. Nd2 {[%emt 0:00:15]} Nf8 {[%emt 0:00:20]} 33. Nc4 {[%emt 0:00:03]} Nd7 {[%emt 0:00:05]} 34. Rda1 {[%emt 0:01:10]} Rf8 {[%emt 0:00:38]} 35. a5 {[%emt 0:00:38]} bxa5 {[%emt 0:00:12]} 36. Rxa5 {[%emt 0:00:40]} Rab8 {[%emt 0:00:36]} 37. Kg2 {[%emt 0:00:42]} Qd8 {[%emt 0:00:09]} 38. Ra7 {[%emt 0:00:53]} f5 {[%emt 0:01:27]} 39. exf5 {[%emt 0:00:21]} Rxf5 {[%emt 0:00:02]} 40. Nd6 {[%emt 0:01:42][%csl LRb7,LRf5]} Rf8 {[%emt 0:00:20]} 41. Nxb7 {[%emt 0:00:30]} ({Resist} 41. Rxb7 $6 Rxb7 42. Nxb7 Qb6 $14) 41... Qf6 {[%emt 0:01:08]} (41... Qc7 $16 {keeps fighting.}) 42. R1a6 $18 {[%emt 0:00:34]} Qf7 {[%emt 0:00:15][%cal Ob8b7]} 43. Nxc5 {[%emt 0:00:31]} (43. Kg1 $18 Qf5 44. Nd6 (44. Nxc5 Nxc5 45. Qxc5 Qb1+ 46. Kh2 Qf1 $11) 44... Qxh3 45. Ra4) 43... Qxd5+ $11 {[%emt 0:00:08]} 44. Ne4 {[%emt 0:00:05] Strongly threatening Rd6.} Nf6 $1 {[%emt 0:00:33]} 45. Ra4 {[%emt 0:00:56]} Rxb5 {[%emt 0:00:47] aiming for ...Nxe4.} 46. Qf3 {[%emt 0:00:27][%mdl 8192]} (46. Qe2 $11 {and White has nothing to worry.}) 46... Nxe4 $19 {[%emt 0:00:20]} 47. Qxe4 {[%emt 0:00:02] [#]} Qxe4+ {[%emt 0:00:23]} (47... Rxf2+ $1 $19 {[%mdl 512]} 48. Kxf2 Rb2+ 49. Qe2 (49. Ke3 $2 {leads to mate.} Qd2+ 50. Kf3 Qd1+ 51. Ke3 Qe2#) 49... Rxe2+ 50. Kxe2 Qg2+ 51. Ke3 Qxg3+ 52. Ke4 Qxh3 53. Kxe5 h5) 48. Rxe4 {[%emt 0:00:01][%mdl 4096] Endgame KRR-KRR} Rb2 {[%emt 0:00:06] Against Re2} 49. g4 $2 {[%emt 0:01:28]} (49. Kg1 $17 {was the only defense.}) 49... Rbxf2+ {[%emt 0:01:26]} ({Weaker is} 49... Rfxf2+ 50. Kg3 $15) 50. Kg1 {[%emt 0:00:02]} Rb2 $2 {[%emt 0:00:33]} ({Black should try} 50... Rf1+ $19 51. Kg2 R8f2+ 52. Kg3 Rf3+ 53. Kh2 R1f2+ 54. Kg1 Rb2) 51. Rxe5 $11 {[%emt 0:00:21]} Rc8 {[%emt 0:00:03] ( -> ...Rc1+)} 52. Kf1 {[%emt 0:00:30]} Rh2 {[%emt 0:00:05] And now ...Rc1+ would win.} 53. Rae7 {[%emt 0:01:08]} ({Better is} 53. Kg1 $11 Rxh3 54. g5) 53... Rxh3 $15 {[%emt 0:01:17]} 54. Re8+ {[%emt 0:00:32]} (54. Kg2 $15 Rcc3 55. Re4) 54... Rxe8 $19 {[%emt 0:00:05]} 55. Rxe8+ {[%emt 0:00:03] KR-KR} Kf7 {[%emt 0:00:03]} 56. Re2 {[%emt 0:00:43] [#]} (56. Rb8) 56... Rh4 $1 {[%emt 0:00:21] Black is clearly winning.} 57. Re4 {[%emt 0:00:42]} Rh2 {[%emt 0:00:50]} 58. Ra4 {[%emt 0:00:31]} Kg6 {[%emt 0:00:18] Hoping for ...Kg5.} 59. Ra5 {[%emt 0:00:34]} Rh4 {[%emt 0:00:24]} 60. Ra4 {[%emt 0:00:27]} Kg5 {[%emt 0:00:06]} 61. Ra7 {[%emt 0:00:06]} g6 {[%emt 0:00:19]} 62. Ra5+ {[%emt 0:00:17]} Kxg4 {[%emt 0:00:17]} 63. Ra4+ {[%emt 0:00:34]} Kh5 {[%emt 0:00:08] Weighted Error Value: White=0.54/Black=0.20 (precise)} (63... Kg3 $142 64. Ra3+ Kh2 65. Ra2+ Kh1) 0-1